Cogmind - Beta 9.1 *** ADVENTURER MODE // 2019.11.08 @ 20:58:49 Player: ALPHA Result: Self-destructed Performance ------------- Evolutions (1) 500 Regions Visited (2) 400 Robots Destroyed (33) 165 Value Destroyed (432) 432 Prototype IDs (0) 0 Alien Tech Used (0) 0 Bonus (0) 0 TOTAL SCORE: 1497 Bonus ------- None Cogmind --------- Core Integrity 323/400 Matter 116/300 Energy 250/250 System Corruption 0% Temperature Cool (0) Location -9/Materials Parts ------- Power (1) Ion Engine Propulsion (3) Wheel Wheel Utility (3) Sensor Array Improved Targeting Computer Weapon (2) Autogun Autogun Inventory (4) Small Storage Unit Sensor Array EM Pulse Gun Autogun Peak State ------------ Power Ion Engine Propulsion Wheel Wheel Wheel Utility Sensor Array Improved Targeting Computer ECM Suite Weapon Autogun Autogun Inventory Small Storage Unit Sensor Array EM Pulse Gun Autogun [Rating: 12] Favorites ----------- Power Ion Engine Engine Ion Engine Propulsion Wheel Treads Light Treads Wheel Wheel Hover Unit Hover Unit Utility Sensor Array Device Sensor Array Storage Small Storage Unit Processor Improved Targeting Computer Weapon Autogun Energy Gun EM Pulse Gun Ballistic Gun Autogun Build | -11 -10 -9 ------- Run | Scr Mat Mat Slots Evolved 2 | . . 2 Power . | . . . Propulsion 1 | . . 1 Utility 1 | . . 1 Weapon . | . . . Parts Attached 24 | 7 15 2 Power 2 | 1 1 . Engine 2 | 1 1 . Core . | . . . Reactor . | . . . Propulsion 11 | 2 8 1 Treads 4 | 2 2 . Leg . | . . . Wheel 6 | . 5 1 Hover 1 | . 1 . Flight . | . . . Utility 6 | 2 3 1 Device 4 | 1 3 . Storage 1 | 1 . . Processor 1 | . . 1 Hackware . | . . . Protection . | . . . Artifact . | . . . Weapon 5 | 2 3 . Energy Gun 2 | 2 . . Energy Cannon . | . . . Ballistic Gun 3 | . 3 . Ballistic Cannon . | . . . Launcher . | . . . Special Weapon . | . . . Impact Weapon . | . . . Slashing Weapon . | . . . Piercing Weapon . | . . . Special Melee Weapon . | . . . Unidentified Prototypes . | . . . Parts Lost 2 | . . 2 Power . | . . . Propulsion 1 | . . 1 Utility 1 | . . 1 Weapon . | . . . Highest Loss Streak 2 | . . 2 Average Slot Usage (%) 97 | . 98 88 Engine 13 | . 13 11 Treads 4 | . 5 . Wheel 22 | . 21 24 Device 23 | . 23 21 Storage 3 | . 4 . Processor 1 | . . 9 Energy Gun 5 | . 6 . Ballistic Gun 21 | . 21 22 Naked Turns . | . . . Heaviest Build 16 | 14 16 13 Greatest Support 40 | 40 40 30 Greatest Overweight (x) 1 | . 1 . Average Overweight (x) . | . . . Largest Inventory Capacity 6 | 6 6 4 Average Capacity 4 | 5 4 4 Most Carried 6 | 4 6 4 Average Carried 2 | . 2 4 Final Capacity 6 | 6 4 4 Final Carried 4 | . 4 4 Class Distribution -------------------- 100% | Mutant Dominant Class ---------------- Mutant | -10/Materials Mutant | -9/Materials Resources | -11 -10 -9 ----------- Run | Scr Mat Mat Matter Collected 621 | 257 351 13 Remotely . | . . . Salvage Created 846 | 149 568 129 Parts 63 | 7 42 14 Haulers Intercepted . | . . . Recyclers Shooed . | . . . Parts Field Recycled . | . . . Retrieved Matter . | . . . Parts Self-Destructed . | . . . Prevented . | . . . Kills | -11 -10 -9 ------- Run | Scr Mat Mat Combat Hostiles Destroyed 21 | . 14 7 Guns 21 | . 14 7 Classes Destroyed 7 | 2 5 . Worker 3 | . 3 . Builder 1 | . 1 . Tunneler 3 | 2 . 1 Recycler 2 | 1 1 . Watcher 3 | . 3 . Swarmer 16 | . 9 7 Grunt 5 | . 5 . Best Kill Streak 5 | 3 5 4 Combat Bots Only 4 | . 3 4 Max Kills in Single Turn 2 | 1 2 2 Gunslinging 1 | . . 1 Exploded . | . . . Melee . | . . . Uniques/NPCs Destroyed . | . . . Combat | -11 -10 -9 -------- Run | Scr Mat Mat Damage Taken 636 | . 278 358 Core 132 | . 55 77 Absorbed by Shields . | . . . Core Remaining (%) 89 | 100 78 . Volleys Fired 64 | 5 37 22 Largest 2 | 2 2 2 Hottest 80 | 80 80 46 Shots Fired 128 | 10 74 44 Gun 128 | 10 74 44 Cannon . | . . . Launcher . | . . . Special . | . . . Kinetic 96 | . 52 44 Thermal . | . . . Explosive . | . . . Electromagnetic 32 | 10 22 . Robot Hit Streak 12 | 6 12 5 Robot Miss Streak 2 | 1 2 2 Penetration Max . | . . . Secondary Targets 1 | . . 1 Max Gunslinging Chain 1 | . . 1 Shots Hit Robots 79 | 6 48 25 Core Hits 37 | 3 25 9 Critical Hits 1 | . 1 . Critical Kills . | . . . Critical Parts Destroyed 1 | . 1 . Melee Attacks . | . . . Impact . | . . . Slashing . | . . . Piercing . | . . . Sneak Attacks . | . . . Combat Hostiles . | . . . Follow-up Attacks . | . . . Damage Inflicted 1301 | 84 858 359 Guns 1178 | 84 735 359 Cannons . | . . . Explosions 123 | . 123 . Melee . | . . . Ramming . | . . . Kinetic 831 | . 472 359 Thermal 123 | . 123 . Explosive . | . . . Electromagnetic 347 | 84 263 . Impact . | . . . Slashing . | . . . Piercing . | . . . Highest Corruption 1 | . 1 . Average Corruption 1 | . 1 . Corruption Purged . | . . . Overload Shots . | . . . Overflow Damage . | . . . Projectiles . | . . . Explosions . | . . . Melee . | . . . Knockbacks . | . . . Impact . | . . . Kinetic . | . . . Secondary . | . . . Self-Inflicted Damage 73 | . 73 . Shots 3 | . 3 . Rammed 3 | . . 3 Targets Rammed 3 | . . 3 Kicked . | . . . Crushed . | . . . Highest Temperature 84 | 54 84 18 Average Temperature 17 | 23 17 9 Received Heat Transfer 138 | . 75 63 Siege Activations . | . . . Robots Corrupted . | . . . Combat Hostiles . | . . . Parts Fried 3 | 1 2 . Impact Corruptions . | . . . Robots Melted . | . . . Combat Hostiles . | . . . Parts Melted . | . . . Heat Transferred 50 | . 50 . Parts Sabotaged . | . . . Parts Stolen . | . . . Parts Stripped . | . . . Power Chain Reactions 3 | . 3 . Missiles Intercepted . | . . . Alert | -11 -10 -9 ------- Run | Scr Mat Mat Peak Influence 240 | 15 240 234 Average Influence 96 | 5 101 111 Maximum Alert Level 1 | . 1 1 Low Security (%) 95 | . . . Level 1 4 | . . . Level 2 . | . . . Level 3 . | . . . Level 4 . | . . . Level 5 . | . . . High Security . | . . . Max Security . | . . . Squads Dispatched 1 | . 1 . Investigation 1 | . 1 . Extermination . | . . . Reinforcement . | . . . Assault . | . . . Garrison . | . . . Intercept . | . . . Construction Impeded . | . . . Haulers Reinforced . | . . . Stealth | -11 -10 -9 --------- Run | Scr Mat Mat Distress Signals 3 | . . 3 Communications Jammed . | . . . Distress Signals . | . . . Times Spotted 44 | . 24 20 Peak Tracking Total 10 | . 3 10 Tactical Retreats 7 | . 3 4 Traps | -11 -10 -9 ------- Run | Scr Mat Mat Traps Triggered 1 | . 1 . Indirectly . | . . . Trap Hack Attempts . | . . . Triggered . | . . . Disarmed . | . . . Reprogrammed . | . . . Reused . | . . . Traps Extracted . | . . . Installed . | . . . Triggered . | . . . Machines | -11 -10 -9 ---------- Run | Scr Mat Mat Machines Disabled . | . . . Max in Single Turn . | . . . Machines Sabotaged . | . . . Garrisons Compromised . | . . . Overloaded Fab Kills . | . . . Fab Network Shutdowns . | . . . Hacking | -11 -10 -9 --------- Run | Scr Mat Mat Machines Accessed 11 | . 10 1 Terminals 8 | . 7 1 Fabricators . | . . . Repair Stations 1 | . 1 . Recycling Units 2 | . 2 . Scanalyzers . | . . . Garrison Access . | . . . Total Hacks 24 | . 23 1 Successful 16 | . 15 1 Failed 8 | . 8 . Catastrophic 3 | . 3 . Database Lockouts . | . . . Manual . | . . . Terminals 15 | . 14 1 Fabricators . | . . . Repair Stations 4 | . 4 . Recycling Units 5 | . 5 . Scanalyzers . | . . . Garrison Access . | . . . Terminal Hacks 8 | . 7 1 Record 4 | . 4 . Robot Analysis 2 | . 2 . Branch Access Points 1 | . . 1 Security Status 1 | . 1 . Fabricator Hacks . | . . . Repair Station Hacks 4 | . 4 . Scan Component 2 | . 2 . Repair 2 | . 2 . Recycling Unit Hacks 4 | . 4 . Process 1 | . 1 . Report Inventory 2 | . 2 . Retrieve Matter 1 | . 1 . Scanalyzer . | . . . Garrison Access Hacks . | . . . Unauthorized Hacks . | . . . Terminals . | . . . Fabricators . | . . . Repair Stations . | . . . Recycling Units . | . . . Scanalyzers . | . . . Garrison Access . | . . . Data Cores Recovered . | . . . Used . | . . . Hacking Detections 4 | . 4 . Full Trace Events 1 | . 1 . Feedback Events . | . . . Feedback Blocked . | . . . Robot Schematics Acquired . | . . . Robots Built . | . . . Matter . | . . . Time . | . . . Total Robot Build Rating . | . . . Part Schematics Acquired . | . . . Parts Built . | . . . Matter . | . . . Time . | . . . Total Part Build Rating . | . . . Parts Repaired 2 | . 2 . Time 52 | . 52 . Parts Recycled . | . . . Recycled Matter 68 | . 68 . Retrieved Matter . | . . . Retrieved Components . | . . . Parts Scanalyzed . | . . . Part Schematics Acquired . | . . . Parts Damaged . | . . . Bothacking | -11 -10 -9 ------------ Run | Scr Mat Mat Used RIF Installer . | . . . Robots Hacked . | . . . Non-combat . | . . . Combat . | . . . Robot Hacks Applied . | . . . Relay Couplers Released . | . . . Robots Rewired . | . . . Allies Hacked . | . . . Hacks Repelled . | . . . Allies | -11 -10 -9 -------- Run | Scr Mat Mat Total Allies . | . . . Largest Group . | . . . Highest-Rated Group . | . . . Highest-Rated Ally . | . . . Total Orders . | . . . Ally Attacks . | . . . Total Damage . | . . . Kills . | . . . Allies Corrupted . | . . . Allies Melted . | . . . Intel | -11 -10 -9 ------- Run | Scr Mat Mat Robot Analysis Total 2 | . 2 . Derelict Logs Recovered . | . . . Drone Launches . | . . . Drone Recoveries . | . . . Exploration | -11 -10 -9 ------------- Run | Scr Mat Mat Turns Passed 1312 | 95 1053 164 Spaces Moved 1025 | 53 872 100 Core 19 | 19 . . Treads 137 | 34 103 . Legs . | . . . Wheels 869 | . 769 100 Hover . | . . . Flight . | . . . Fastest Speed 50 | 50 80 80 Average Speed 90 | 120 89 80 Slowest Speed 160 | 160 160 80 Overloaded Moves . | . . . Propulsion Burnouts . | . . . Robots Hopped . | . . . Cave-ins Triggered . | . . . Exploration Rate (%) 38 | 4 95 15 Regions Visited 2 Branch Regions . Pre-discovered Areas . | . . . Known Exits Taken . | . . . Unknown Exits Taken 2 | 1 1 . Scrap Searched . | . . . Spaces Dug . | . . . Terrain Destroyed 9 | . 9 . Melee . | . . . Projectile . | . . . AOE 9 | . 9 . Actions | -11 -10 -9 --------- Run | Scr Mat Mat Total 1298 | 74 1077 147 Wait 151 | 3 128 20 Move 1023 | 52 871 100 Hop . | . . . Pick Up 23 | 7 16 . Fast Attach 2 | . . 2 Attach 9 | 7 2 . Detach . | . . . Swap 13 | . 13 . Drop 10 | . 10 . Fire 64 | 5 37 22 Melee . | . . . Ram 3 | . . 3 Kick . | . . . Crush . | . . . Escape Stasis . | . . . Rewire . | . . . Trap . | . . . Miscellaneous . | . . . Route ------- -11/Scrapyard -10/Materials (discovered 4 exits: *Mat x3 / [*Min]) -9/Materials (discovered 2 exits: Min x2) History --------- Turn | Location | Event 12 | -11/Scrapyard | Discovered new exit (range 16) 96 | -11/Scrapyard | Entered Materials 334 | -10/Materials | Build established: Mutant 335 | -10/Materials | Discovered new exit (range 16) 457 | -10/Materials | Discovered new exit (range 14) 882 | -10/Materials | Discovered new exit (range 7) 944 | -10/Materials | Repaired Ion Engine 974 | -10/Materials | Repaired Wheel 1120 | -10/Materials | Discovered new exit (range 5) 1149 | -10/Materials | Entered another Materials area 1149 | -9/Materials | Evolved 2 slots: Propulsion x1, Utility x1 1179 | -9/Materials | Identified exit to Mines 1313 | -9/Materials | Self-destructed Last Messages --------------- 01215_ S-10 Pest destroyed. 01233_ Acquired 13 matter. 01234_ U-05 Engineer builds a Door. 01247_ T-07 Excavator destroyed. 01252_ Acquired Wheel. 01268_ T-07 Excavator distress signal alerts nearby ally. 01270_ K-01 Serf collects debris. 01273_ U-05 Engineer builds a Door. 01275_ K-01 Serf collects debris. 01277_ Slammed into S-10 Pest. 01279_ W-16 Scout distress signal alerts nearby ally. 01279_ Slammed into S-10 Pest. 01280_ K-01 Serf collects debris. 01290_ S-10 Pest destroyed. 01295_ Wheel destroyed. 01297_ S-10 Pest destroyed. 01297_ Switching to secondary target: S-10 Pest. 01297_ S-10 Pest destroyed. 01307_ ECM Suite destroyed. [Achievement: 5k Club] Map ----- +----------------------------------------------------+ | ?????????????????????????????????????????????????? | | ?????????????????????????????????????????????????? | | ?????????????????????????????????????????????????? | | ?????????????????????????????????????????????????? | | ?????????????????????????????????????????????????? | | ??????????????????????????????>??????????????????? | | ?????????????????????????????????????????????????? | | ?????????????????????????????????????????????????? | | ?????????????????????????????????????????????????? | | ?????????????????????????????????????????????????? | | ?????????????????????????????????????????????????? | | ?????????????????????????????????????????????????? | | ????????????????????????????? ?????????????????? | | ????????????????????????????# #????????????????? | | ????????????????????????????# #????????????????? | | ????????????????????????????# ##???????????????? | | ????????????????????????????+ ????????????????? | | ????????????????????????????# ????????????????? | | ????????????????????????????# ????????????????? | | ????????????????????????????#? #????????????????? | | ??????????????????###########? ?#????????????????? | | ??????????????????# ## ##???????????????? | | ??????????????????# """""s[## ????????????????? | | ??????????????????# ""T""= ## #????????????????? | | ??????????????????# %*Y[*## #????????????????? | | ??????????????????# ! %Y@ ##? #????????? #????? | | ????????????# #####+##### #### = #????? | | ????????????# ? + #????? | | ????????????# #### #????? | | ????????????# ^ ##????????? #????? | | ????????????# ^ *!#?????????????????? | | ????????????## %#?????????????????? | | ?????????????# ########|#??????????? ?????? | | ?????????????# ???????# #??????????? "????? | | ?????????????+ ???????# #??????????? "????? | | ?????????????# ??######+####???????? ????? | | ?????????????# ??# #???????? ????? | | ?????????????# ###* #########+##???? | | ?????????????# %/[ # # #???? | | ?????????????# [#% # # #???? | | ?????????????# # # | "" # #???? | | ?????????????+ ?# """ """ # T" # +???? | | ?????????????# ?# """ """ # "" # #???? | | ?????????????#" """"" # """ """ # # #???? | | ?????????????#T """"" #####+########+### ##### | | ?????????????#" """"" | | ?????????????# | | ?????????? | | ?????????????## ##" "###+######################### | | ?????????????????#"??????????????????????????# | +----------------------------------------------------+ Best States ------------- Heat Dissipation 28 Energy Generation 10 Energy Capacity 250 Matter Stores 300 Matter Capacity 300 Sight Range 16 Robot Scan Range 10 Terrain Scan Range 16 Terrain Scan Density 10 ECM Strength 1 Resistance: KI 20 Resistance: TH 20 Resistance: EX 20 Resistance: EM 20 Resistance: I 20 Resistance: S 20 Resistance: P 20 Evasion (%) 44 Targeting Accuracy 6 Recoil Reduction 2 Item Schematics ----------------- None Robot Schematics ------------------ None Fabricated ------------ Nothing Alien Tech Used ----------------- None Achievements -------------- 5k Club Challenges ------------ None Game ------ Seed DirtyFactoryDeconstructor Manual? 0 Play Time 00:19:52 Cumulative 14.8 hours Start 2019.11.08 @ 20:38:27 End 2019.11.08 @ 20:58:49 Sessions 1 Manual Loads 0 Difficulty Adventurer Special Mode None Game No. 19 Rogue 9 Adventurer 5 Explorer 0 Win Type - Total 0 Types 0/0/0/0/0/0/0 Lore% 13 Gallery% 17 Achievement% 7 Wizard Run 0 Options --------- ASCII 0 Keyboard 0 Movement Mouse Keybinds 0 Fullscreen 2 Font 18/Terminus Map View 76x50 Tactical HUD 1 Map Filters NONE Filters NONE Steam 1 RUN: 0275e2af-0165-4f89-85ee-93912a9db05d